[Event "CCT Julius Baer-D1-Place 2024"]
[Site "Online"]
[Date "2024.09.26"]
[Round "1.1"]
[White "So, Wesley"]
[Black "Madaminov, Mukhiddin"]
[Result "1-0"]
[ECO "C77"]
[WhiteElo "2752"]
[BlackElo "2512"]
[Annotator "TA"]
[PlyCount "91"]
[EventDate "2024.09.25"]
[EventType "swiss"]
[EventCountry "NET"]
[SourceTitle "playchess.com"]
[Source "ChessBase"]
[SourceQuality "1"]
[TimeControl "600+2"]

{[%evp 13,91,14,15,12,18,22,18,10,33,8,45,33,42,41,22,22,53,38,97,96,86,88,78,27,144,135,138,133,129,139,131,126,135,141,133,141,124,103,106,92,112,123,173,172,170,175,174,169,172,172,193,177,368,370,373,363,356,209,345,335,370,380,367,375,377,321,350,321,402,326,423,324,325,317,775,466,941,932,29991,995]} 1. e4 {[%emt 0:00:14]} e5 {[%emt 0:00:06]} 2. Nf3 {[%emt 0:00:04]} Nc6 {[%emt 0:00:02]} 3. Bb5 {[%emt 0:00:01]} a6 {[%emt 0:00:07]} 4. Ba4 {[%emt 0:00:02]} Nf6 {[%emt 0:00:02]} 5. d3 {[%emt 0:00:01]} b5 {[%emt 0:00:10]} 6. Bb3 {[%emt 0:00:05]} Bc5 {[%emt 0:00:02]} 7. c3 {[%emt 0:00:03]} d6 {[%emt 0:00:30]} 8. Bg5 {[%emt 0:00:05]} h6 {[%emt 0:00:49]} 9. Bh4 {[%emt 0:00:02]} Bb6 {[%emt 0:00:44]} 10. Nbd2 {[%emt 0:00:24] The position is equal.} Rb8 {[%emt 0:00:42]} 11. O-O {[%emt 0:00:17]} Qe7 {[%emt 0:00:38]} 12. a4 {[%emt 0:00:21]} O-O {[%emt 0:00:10]} 13. Re1 {[%emt 0:00:20]} Be6 {[%emt 0:00:27]} 14. Bd5 {[%emt 0:00:20]} Nd8 {[%emt 0:00:29]} 15. d4 {[%emt 0:00:13]} c6 {[%emt 0:00:03]} (15... Bd7 $14) 16. Bxe6 $16 {[%emt 0:00:21]} Qxe6 {[%emt 0:00:12]} 17. axb5 {[%emt 0:00:17]} axb5 {[%emt 0:00:03]} 18. Qb3 {[%emt 0:01:25]} ({Better is} 18. Bg3 $16) 18... Nd7 {[%emt 0:01:30] [#]} (18... g5 $11 {keeps the balance.} 19. dxe5 Nd7) 19. Qxe6 $1 {[%emt 0:00:29]} Nxe6 {[%emt 0:00:07]} 20. Be7 {[%emt 0:00:01][%csl LRd6,LRf8]} exd4 {[%emt 0:00:17]} 21. Bxd6 {[%emt 0:00:03] White has more active pieces.} dxc3 {[%emt 0:00:16]} 22. bxc3 {[%emt 0:00:00]} Ndc5 {[%emt 0:00:13][%cal Oc5d3]} 23. Bxb8 {[%emt 0:01:07]} Rxb8 {[%emt 0:00:02]} 24. Ne5 {[%emt 0:00:05] Against Nd3} Rc8 {[%emt 0:00:17]} 25. Ndf3 {[%emt 0:01:17]} f6 {[%emt 0:00:41]} 26. Ng4 {[%emt 0:00:01]} h5 {[%emt 0:00:04]} 27. Ne3 {[%emt 0:00:01]} Nxe4 {[%emt 0:00:02] [#]} (27... Nf4 $16 {might work better.}) 28. Nf5 $1 $36 {[%emt 0:00:18][%mdl 2048] White is really pushing.} Bxf2+ {[%emt 0:00:47]} 29. Kf1 {[%emt 0:00:01]} Bxe1 {[%emt 0:00:05]} 30. Rxe1 {[%emt 0:00:00]} Ra8 {[%emt 0:00:48] White must now prevent ...N6c5.} 31. Rxe4 {[%emt 0:00:01]} Ra1+ {[%emt 0:00:00]} 32. Kf2 {[%emt 0:00:21]} Nc5 {[%emt 0:00:02]} (32... Kf7 33. Nd6+ Ke7) 33. Re8+ {[%emt 0:00:06]} Kf7 {[%emt 0:00:10]} 34. Re7+ {[%emt 0:00:04]} Kf8 {[%emt 0:00:01]} 35. Rc7 {[%emt 0:01:10]} (35. Rxg7 Ne4+ 36. Ke2 Nxc3+ 37. Kd3 Nd5 $18) (35. N3h4 $142 {White wants to mate with Ng6+.} Nd3+ 36. Ke3) 35... g6 {[%emt 0:00:03]} (35... Ne4+ $142 36. Ke3 Nxc3 37. Rxg7 (37. Nxg7 $2 Nd5+ 38. Ke2 Nxc7 $19) (37. Rxc6 b4 $18) 37... Rd1) 36. N5d4 {[%emt 0:00:13]} (36. Rxc6 Ne4+ 37. Ke3 gxf5 $11) 36... Ne4+ {[%emt 0:00:14]} 37. Ke3 {[%emt 0:00:01]} Nxc3 {[%emt 0:00:00] Hoping for ...Nd5+.} 38. Rxc6 {[%emt 0:00:07]} b4 {[%emt 0:00:16]} 39. Rxf6+ {[%emt 0:00:02]} Kg7 {[%emt 0:00:00]} 40. Rc6 {[%emt 0:00:06]} Ra2 {[%emt 0:00:01]} 41. Nh4 {[%emt 0:00:08]} g5 {[%emt 0:00:05]} 42. Nhf5+ {[%emt 0:00:08]} Kf7 {[%emt 0:00:01]} 43. Nf3 {[%emt 0:00:05] Intending Ne5+ and mate.} Re2+ $2 {[%emt 0:00:06]} (43... Ke8 44. g3 (44. Nxg5 Rxg2 45. h4 Rg1 $18) 44... Kd8) 44. Kd4 {[%emt 0:00:08] And now Ne5+ would win.} Re4+ {[%emt 0:00:02]} (44... Ke8 $142 45. Rh6 (45. Nxg5 Kd7 $18) 45... Kd8 46. Nxg5 (46. Rxh5 Rxg2 47. Nxg5 Nd1 $18) 46... Rd2+ 47. Kc4 Rxg2 48. Ne6+ (48. Rxh5 Rg4+ 49. Kb3 Ne2 $18) 48... Kd7 49. Nc5+ (49. Kxb4 Ne4 $18) 49... Ke8) 45. Kd3 {[%emt 0:00:01]} Re8 {[%emt 0:00:04]} 46. Nd6+ {[%emt 0:00:03] Weighted Error Value: White=0.22 (precise) /Black=0.55.  Mistake:       	White=2     	Black=7      Inaccurate:     	White=1     	Black=3      OK:         	White=14    	Black=12     Best:        	White=5     	Black=5      Strong:       	White=2     	---} (46. Nxg5+ $142 Kg8 47. Rg6+ Kf8 48. Rf6+ Kg8 49. Rf7 Re3+ 50. Kxe3 (50. Nxe3 Ne4 51. Kxe4 h4 52. Nd5 Kh8 53. Ne7 b3 54. Rh7#) 50... Nd5+ 51. Kd4 Nf6 52. Rg7+ (52. Rxf6 h4 53. Rb6 Kh8 54. Rb8#) 52... Kf8 53. Ne6+ Ke8 54. Re7#) 1-0

[Event "CCT Julius Baer-D1-Place 2024"]
[Site "Online"]
[Date "2024.09.26"]
[Round "1.1"]
[White "Aronian, Levon"]
[Black "Durarbayli, Vasif"]
[Result "1-0"]
[ECO "B50"]
[WhiteElo "2729"]
[BlackElo "2626"]
[Annotator "TA"]
[PlyCount "67"]
[EventDate "2024.09.25"]
[EventType "swiss"]
[EventCountry "NET"]
[SourceTitle "playchess.com"]
[Source "ChessBase"]
[SourceQuality "1"]
[TimeControl "600+2"]

{[%evp 9,67,0,0,0,0,0,0,0,0,-12,-15,-1,-14,-18,-1,-44,-40,-37,-13,-19,0,0,0,0,0,-24,45,38,54,48,37,52,39,37,135,116,114,116,115,154,151,91,63,82,147,176,262,269,420,408,386,429,422,422,407,408,29979,29980,29998,29999]} 1. e4 {[%emt 0:00:03]} c5 {[%emt 0:00:03]} 2. Nf3 {[%emt 0:00:01]} d6 {[%emt 0:00:01][%cal Bd7d6,Bd6d5][%mdl 32]} 3. Bc4 {[%emt 0:00:01]} Nf6 {[%emt 0:00:03]} 4. d3 {[%emt 0:00:01]} e6 {[%emt 0:00:10]} 5. O-O {[%emt 0:00:02]} Be7 {[%emt 0:00:01]} 6. Re1 {[%emt 0:00:02]} O-O {[%emt 0:00:01]} 7. Nbd2 {[%emt 0:00:03]} d5 {[%emt 0:00:15]} 8. Bb3 {[%emt 0:00:01] The position is equal.} b5 {[%emt 0:00:08]} 9. e5 {[%emt 0:00:03]} Nfd7 {[%emt 0:00:12]} 10. c3 {[%emt 0:00:12]} Nc6 {[%emt 0:00:42]} 11. d4 {[%emt 0:00:11]} b4 {[%emt 0:00:06]} 12. Nf1 {[%emt 0:00:06]} bxc3 {[%emt 0:00:55]} 13. bxc3 {[%emt 0:00:02]} cxd4 {[%emt 0:00:00]} 14. cxd4 {[%emt 0:00:00]} Na5 {[%emt 0:01:02]} 15. Bc2 {[%emt 0:01:08]} Ba6 {[%emt 0:00:02] Dodges Qd3} 16. h4 {[%emt 0:00:02]} Rc8 $1 {[%emt 0:00:28]} 17. Bg5 {[%emt 0:00:41]} Bxf1 {[%emt 0:00:22]} ({Black should play} 17... Re8 $11) 18. Kxf1 {[%emt 0:00:17]} Bxg5 {[%emt 0:00:59]} 19. Bxh7+ {[%emt 0:00:11]} Kxh7 {[%emt 0:00:36]} 20. Nxg5+ {[%emt 0:00:01]} Kh6 $1 {[%emt 0:00:01] White must now prevent ...g6.} ({Wrong is} 20... Kg8 $2 21. Qh5 $18) 21. Qd2 $40 {[%emt 0:00:05][%csl LRe6,LRf7][%mdl 128] White is up to no good.} Qb6 {[%emt 0:01:27]} ({Black should try} 21... Nc4 $14 22. Qf4 Qe7) 22. Qf4 {[%emt 0:00:03]} g6 {[%emt 0:01:08]} 23. Nxe6+ {[%emt 0:01:35]} (23. Nxf7+ $2 {too greedy.} Kg7 24. Qh6+ Kxf7 $19) 23... Kh7 {[%emt 0:00:01]} 24. Nxf8+ {[%emt 0:00:01]} Rxf8 {[%emt 0:00:00]} 25. Re3 {[%emt 0:00:12]} (25. Rab1 $142 Qe6 26. Rb5) 25... Nc6 $16 {[%emt 0:00:55]} 26. Rd1 {[%emt 0:00:22][%cal Oh4h5] Threatens to win with h5!} Ne7 {[%emt 0:00:06] [#]} ({Better is} 26... Nd8) 27. h5 $1 {[%emt 0:00:15][%cal Bh4h5,Bh5h6][%mdl 544]} Kg7 {[%emt 0:00:24]} (27... Kg8 $142 28. Qg5 Nf5) (27... Qe6 28. hxg6+) 28. Rh3 $18 {[%emt 0:00:45]} Rh8 {[%emt 0:00:15]} (28... Qe6 {might work better.} 29. hxg6 fxg6) 29. h6+ {[%emt 0:00:06]} Kf8 {[%emt 0:00:01] [#]} 30. e6 $1 {[%emt 0:00:29][%mdl 512]} Qxe6 {[%emt 0:00:18]} 31. Re1 {[%emt 0:00:02]} Qa6+ {[%emt 0:00:17]} 32. Kg1 {[%emt 0:00:01] Qc7 is the strong threat.} Nf6 {[%emt 0:00:02]} (32... Nf5 $18 33. g4 (33. Qc7 Rxh6 34. Rxh6 Nxh6 $18) 33... Qd6) 33. Qc7 {[%emt 0:00:17]} Nc8 {[%emt 0:00:05]} 34. Qd8+ {[%emt 0:00:05] Weighted Error Value: White=0.09 (flawless) /Black=0.43.  Mistake:       	White=1     	Black=6      Inaccurate:     	White=1     	---        OK:         	White=14    	Black=6      Best:        	White=3     	Black=4      Strong:       	---       	Black=2} 1-0

[Event "CCT Julius Baer-D1-Place 2024"]
[Site "Online"]
[Date "2024.09.26"]
[Round "1.1"]
[White "Bortnyk, Olexandr"]
[Black "Oparin, Grigoriy"]
[Result "0-1"]
[ECO "D00"]
[WhiteElo "2608"]
[BlackElo "2662"]
[Annotator "RC"]
[PlyCount "190"]
[EventDate "2024.09.25"]
[EventType "swiss"]
[EventCountry "NET"]
[SourceTitle "playchess.com"]
[Source "ChessBase"]
[SourceQuality "1"]
[TimeControl "600+2"]

1. d4 {[%emt 0:00:06]} Nf6 {[%emt 0:00:04]} 2. Nc3 {[%emt 0:00:00]} d5 {[%emt 0:00:01]} 3. Bf4 {[%emt 0:00:02]} e6 {[%emt 0:00:00]} 4. Nb5 {[%emt 0:00:01]} Bb4+ {[%emt 0:00:01]} 5. c3 {[%emt 0:00:00]} Ba5 {[%emt 0:00:02]} 6. a4 {[%emt 0:00:01]} a6 {[%emt 0:00:02]} 7. b4 {[%emt 0:00:01]} Bxb4 {[%emt 0:00:02]} 8. cxb4 {[%emt 0:00:01]} axb5 {[%emt 0:00:00]} 9. axb5 {[%emt 0:00:00]} Rxa1 {[%emt 0:00:01]} 10. Qxa1 {[%emt 0:00:00]} Nh5 {[%emt 0:00:01]} 11. Be5 {[%emt 0:00:29]} f6 {[%emt 0:00:01]} 12. Bg3 {[%emt 0:00:06]} Nxg3 {[%emt 0:00:03]} 13. hxg3 {[%emt 0:00:01]} Qd6 {[%emt 0:00:01]} 14. Qb1 {[%emt 0:00:09]} c6 {[%emt 0:00:39]} 15. e3 {[%emt 0:00:16]} Bd7 {[%emt 0:00:09]} 16. b6 {[%emt 0:00:54]} Ke7 {[%emt 0:01:48]} 17. Ne2 {[%emt 0:00:49]} Be8 {[%emt 0:00:09]} 18. Nc3 {[%emt 0:01:27]} Bg6 {[%emt 0:00:27]} 19. Qb3 {[%emt 0:00:12]} Nd7 {[%emt 0:00:02]} 20. Na4 {[%emt 0:00:01]} Ra8 {[%emt 0:00:32]} 21. Be2 {[%emt 0:00:11]} Bc2 {[%emt 0:02:59]} 22. Qxc2 {[%emt 0:00:12]} Qxb4+ {[%emt 0:00:01]} 23. Nc3 {[%emt 0:00:14]} Ra1+ {[%emt 0:00:00]} 24. Bd1 {[%emt 0:00:09]} Ra3 {[%emt 0:00:01]} 25. O-O {[%emt 0:00:18]} Rxc3 {[%emt 0:00:26]} 26. Qxh7 {[%emt 0:00:02]} Qxb6 {[%emt 0:00:04]} 27. Qxg7+ {[%emt 0:00:04]} Kd6 {[%emt 0:00:01]} 28. Bh5 {[%emt 0:00:47]} Qd8 {[%emt 0:00:06]} 29. Ra1 {[%emt 0:00:03]} Qf8 {[%emt 0:00:18]} 30. Qh7 {[%emt 0:00:09]} Kc7 {[%emt 0:00:04]} 31. Bf7 {[%emt 0:00:34]} Qe7 {[%emt 0:00:27]} 32. Ra8 {[%emt 0:00:55]} Rc1+ {[%emt 0:00:02]} 33. Kh2 {[%emt 0:00:01]} Kb6 {[%emt 0:00:01]} 34. g4 {[%emt 0:00:25]} e5 {[%emt 0:00:25]} 35. Qd3 {[%emt 0:00:32]} Qb4 {[%emt 0:00:56]} 36. Be6 {[%emt 0:00:13]} e4 {[%emt 0:00:01]} 37. Qa3 {[%emt 0:00:05]} Qxa3 {[%emt 0:00:04]} 38. Rxa3 {[%emt 0:00:00]} Kc7 {[%emt 0:00:10]} 39. f4 {[%emt 0:00:16]} exf3 {[%emt 0:00:27]} 40. gxf3 {[%emt 0:00:00]} Nb6 {[%emt 0:00:01]} 41. Kg3 {[%emt 0:00:13]} Nc4 {[%emt 0:00:00]} 42. Rb3 {[%emt 0:00:19]} b5 {[%emt 0:00:02]} 43. Kf4 {[%emt 0:00:12]} Re1 {[%emt 0:00:14]} 44. Bf5 {[%emt 0:00:16]} Kd6 {[%emt 0:00:06]} 45. Bg6 {[%emt 0:00:10]} Ke7 {[%emt 0:00:04]} 46. Rc3 {[%emt 0:00:10]} Ke6 {[%emt 0:00:05]} 47. e4 {[%emt 0:00:06]} Rd1 {[%emt 0:00:12]} 48. Bf5+ {[%emt 0:00:19]} Kd6 {[%emt 0:00:01]} 49. e5+ {[%emt 0:00:01]} fxe5+ {[%emt 0:00:01]} 50. dxe5+ {[%emt 0:00:00]} Nxe5 {[%emt 0:00:01]} 51. g5 {[%emt 0:00:00]} d4 {[%emt 0:00:03]} 52. Rb3 {[%emt 0:00:02]} d3 {[%emt 0:00:04]} 53. g6 {[%emt 0:00:02]} Rg1 {[%emt 0:00:07]} 54. Bxd3 {[%emt 0:00:05]} Nxg6+ {[%emt 0:00:02]} 55. Ke3 {[%emt 0:00:05]} Kc5 {[%emt 0:00:05]} 56. Kf2 {[%emt 0:00:04]} Rg5 {[%emt 0:00:01]} 57. Be4 {[%emt 0:00:00]} Kb6 {[%emt 0:00:03]} 58. Ke3 {[%emt 0:00:01]} Rg1 {[%emt 0:00:02]} 59. Kf2 {[%emt 0:00:01]} Rg5 {[%emt 0:00:01]} 60. Rb1 {[%emt 0:00:03]} c5 {[%emt 0:00:05]} 61. Bd3 {[%emt 0:00:00]} b4 {[%emt 0:00:01]} 62. Ke3 {[%emt 0:00:00]} Ne5 {[%emt 0:00:02]} 63. Be2 {[%emt 0:00:02]} Rg8 {[%emt 0:00:02]} 64. f4 {[%emt 0:00:07]} Nc6 {[%emt 0:00:01]} 65. Bc4 {[%emt 0:00:02]} Re8+ {[%emt 0:00:02]} 66. Kd3 {[%emt 0:00:01]} Na5 {[%emt 0:00:01]} 67. Bd5 {[%emt 0:00:03]} Rd8 {[%emt 0:00:04]} 68. Ke4 {[%emt 0:00:01]} Re8+ {[%emt 0:00:01]} 69. Kf3 {[%emt 0:00:06]} Kb5 {[%emt 0:00:01]} 70. f5 {[%emt 0:00:01]} c4 {[%emt 0:00:01]} 71. f6 {[%emt 0:00:00]} Kc5 {[%emt 0:00:01]} 72. f7 {[%emt 0:00:01]} Rf8 {[%emt 0:00:00]} 73. Be6 {[%emt 0:00:02]} Nc6 {[%emt 0:00:02]} 74. Ke4 {[%emt 0:00:01]} Nd8 {[%emt 0:00:00]} 75. Ke5 {[%emt 0:00:01]} Nxf7+ {[%emt 0:00:02]} 76. Kf6 {[%emt 0:00:02]} Nd6+ {[%emt 0:00:01]} 77. Ke7 {[%emt 0:00:00]} Re8+ {[%emt 0:00:03]} 78. Kd7 {[%emt 0:00:01]} Rb8 {[%emt 0:00:01]} 79. Rd1 {[%emt 0:00:02]} Rb7+ {[%emt 0:00:01]} 80. Kd8 {[%emt 0:00:00]} Nb5 {[%emt 0:00:04]} 81. Rd5+ {[%emt 0:00:06]} Kb6 {[%emt 0:00:01]} 82. Rh5 {[%emt 0:00:03]} Rc7 {[%emt 0:00:05]} 83. Rh4 {[%emt 0:00:03]} Nd6 {[%emt 0:00:03]} 84. Rh6 {[%emt 0:00:03]} c3 {[%emt 0:00:02]} 85. Bb3 {[%emt 0:00:05]} Rc6 {[%emt 0:00:01]} 86. Kd7 {[%emt 0:00:01]} Rc7+ {[%emt 0:00:02]} 87. Kd8 {[%emt 0:00:01]} c2 {[%emt 0:00:09]} 88. Rxd6+ {[%emt 0:00:00]} Kb7 {[%emt 0:00:02]} 89. Bd5+ {[%emt 0:00:08]} Kb8 {[%emt 0:00:03]} 90. Ra6 {[%emt 0:00:02]} Rb7 {[%emt 0:00:01]} 91. Rc6 {[%emt 0:00:01]} b3 {[%emt 0:00:01]} 92. Rc8+ {[%emt 0:00:02]} Ka7 {[%emt 0:00:01]} 93. Rc3 {[%emt 0:00:03]} b2 {[%emt 0:00:03]} 94. Ra3+ {[%emt 0:00:01]} Kb8 {[%emt 0:00:01]} 95. Bxb7 {[%emt 0:00:01]} c1=Q {[%emt 0:00:03]} 0-1

[Event "CCT Julius Baer-D1-Place 2024"]
[Site "Online"]
[Date "2024.09.26"]
[Round "1.1"]
[White "Bok, Benjamin"]
[Black "Martinez Alcantara, Jose Eduardo"]
[Result "0-1"]
[ECO "A50"]
[WhiteElo "2596"]
[BlackElo "2607"]
[Annotator "TA"]
[PlyCount "68"]
[EventDate "2024.09.25"]
[EventType "swiss"]
[EventCountry "NET"]
[SourceTitle "playchess.com"]
[Source "ChessBase"]
[SourceQuality "1"]
[TimeControl "600+2"]

{[%evp 12,68,28,10,43,26,36,44,86,91,76,69,49,46,41,28,31,23,55,55,73,78,82,83,91,76,81,88,103,17,42,-6,-14,0,15,-51,-40,-42,-44,-47,-46,-39,-44,-42,-47,-39,-40,-50,-45,-47,-49,-37,-37,-69,-95,-81,-70,-88,-72]} 1. Nf3 {[%emt 0:00:03]} Nf6 {[%emt 0:00:06]} 2. c4 {[%emt 0:00:02]} b6 {[%emt 0:00:02]} 3. g3 {[%emt 0:00:01]} Bb7 {[%emt 0:00:01]} 4. Bg2 {[%emt 0:00:00]} g6 {[%emt 0:00:01]} 5. O-O {[%emt 0:00:04]} Bg7 {[%emt 0:00:01]} 6. d4 {[%emt 0:00:01]} O-O {[%emt 0:00:01]} 7. d5 {[%emt 0:00:03]} e6 {[%emt 0:00:27]} 8. Nc3 {[%emt 0:00:03]} exd5 {[%emt 0:00:01]} 9. cxd5 {[%emt 0:00:00]} c5 {[%emt 0:00:02] White is slightly better.} 10. e4 {[%emt 0:01:02]} d6 {[%emt 0:00:04][%cal Ob6b5]} 11. Re1 {[%emt 0:00:55]} Nbd7 {[%emt 0:00:06]} 12. Bf4 {[%emt 0:00:17]} Ne8 {[%emt 0:00:06]} 13. Qc2 {[%emt 0:00:41]} Ne5 {[%emt 0:00:58]} 14. a4 {[%emt 0:00:22]} a6 {[%emt 0:01:32]} 15. Rad1 {[%emt 0:01:29]} Bc8 {[%emt 0:01:40]} 16. Nxe5 {[%emt 0:00:12]} dxe5 {[%emt 0:00:00]} 17. Be3 {[%emt 0:00:02][%cal Oa4a5]} Nd6 {[%emt 0:01:14] [#]} 18. a5 $1 {[%emt 0:00:36]} Bd7 {[%emt 0:00:02]} 19. axb6 {[%emt 0:00:14]} Qxb6 {[%emt 0:00:00]} 20. Na2 {[%emt 0:00:58]} (20. b3 $16) 20... Qb8 $11 {[%emt 0:00:29]} 21. Qxc5 {[%emt 0:00:44]} (21. Rc1 $14 {is superior.}) 21... Rc8 {[%emt 0:00:05]} 22. Qb4 {[%emt 0:00:02]} Bf8 {[%emt 0:00:27]} 23. Bc5 {[%emt 0:01:09]} ({White should play} 23. Qxb8 $11 Raxb8 24. b4) 23... a5 $15 {[%emt 0:00:18]} 24. Qxb8 {[%emt 0:00:03]} Raxb8 {[%emt 0:00:00]} 25. b4 {[%emt 0:00:01]} axb4 {[%emt 0:00:05]} 26. Bxb4 {[%emt 0:00:00]} Rc2 {[%emt 0:00:06]} 27. Bxd6 {[%emt 0:01:19]} Bxd6 {[%emt 0:00:00]} 28. Nc1 {[%emt 0:00:01] White is weak on the dark squares} Bg4 {[%emt 0:00:03][%mdl 1024] Black has compensation. This pair of bishops is nice.} 29. f3 $1 {[%emt 0:00:14]} Bd7 $1 {[%emt 0:00:23]} 30. Nd3 {[%emt 0:00:03]} Rb3 $1 {[%emt 0:00:24]} 31. Bf1 {[%emt 0:00:02]} Bb5 {[%emt 0:00:36]} 32. Rb1 {[%emt 0:00:18]} Rxd3 {[%emt 0:00:08]} 33. Bxd3 {[%emt 0:00:01]} Bxd3 {[%emt 0:00:01]} 34. Rec1 {[%emt 0:00:04] [#]} Rc5 $1 {[%emt 0:00:40] Weighted Error Value: White=0.14 (very precise) /Black=0.07 (flawless) .  Mistake:       	White=3     	---        Inaccurate:     	White=1     	Black=2      OK:         	White=9     	Black=11     Best:        	White=3     	Black=3      Strong:       	White=1     	Black=3      Brilliant:      	White=1     	---} 0-1

[Event "CCT Julius Baer-D1-Place 2024"]
[Site "Online"]
[Date "2024.09.26"]
[Round "1.1"]
[White "Le, Tuan Minh"]
[Black "Anton Guijarro, David"]
[Result "1-0"]
[ECO "D28"]
[WhiteElo "2564"]
[BlackElo "2665"]
[Annotator "TA"]
[PlyCount "57"]
[EventDate "2024.09.25"]
[EventType "swiss"]
[EventCountry "NET"]
[SourceTitle "playchess.com"]
[Source "ChessBase"]
[SourceQuality "1"]
[TimeControl "600+2"]

{[%evp 16,57,18,12,18,13,16,19,22,16,11,0,0,0,0,0,15,16,118,33,46,32,36,38,68,64,65,75,247,142,363,361,348,344,637,641,1356,1374,1300,1192,2204,1627,1898,1219]} 1. d4 {[%emt 0:00:06]} d5 {[%emt 0:00:06]} 2. c4 {[%emt 0:00:00]} e6 {[%emt 0:00:01]} 3. Nf3 {[%emt 0:00:02]} dxc4 {[%emt 0:00:04]} 4. e3 {[%emt 0:00:08]} Nf6 {[%emt 0:00:02]} 5. Bxc4 {[%emt 0:00:01]} c5 {[%emt 0:00:01]} 6. O-O {[%emt 0:00:01]} Nc6 {[%emt 0:00:01]} 7. Qe2 {[%emt 0:00:20]} a6 {[%emt 0:00:03]} 8. dxc5 {[%emt 0:00:49]} Bxc5 {[%emt 0:00:06]} 9. a3 {[%emt 0:00:00]} Bd6 {[%emt 0:00:31]} 10. Nbd2 {[%emt 0:00:09]} O-O {[%emt 0:00:39]} 11. Rd1 {[%emt 0:00:16]} b5 {[%emt 0:01:06] The position is equal.} 12. Bd3 {[%emt 0:00:03]} Bb7 {[%emt 0:00:04]} 13. Ne4 {[%emt 0:00:06]} Nxe4 {[%emt 0:00:27]} 14. Bxe4 {[%emt 0:00:00]} Qc7 {[%emt 0:00:01]} 15. Bd2 {[%emt 0:00:56]} Ne7 {[%emt 0:01:30]} 16. Rac1 {[%emt 0:00:10]} Qb6 {[%emt 0:00:01] [#]} (16... Qb8 $11 {remains equal.} 17. Bxb7 Qxb7) 17. Ng5 {[%emt 0:01:04]} ({Resist} 17. Ba5 Qxa5 18. Bxb7 Rad8 $14) ({White should play} 17. Bxh7+ $1 $16 Kxh7 18. Ng5+ Kg6 (18... Kg8 $2 19. Qh5 $18) 19. e4) 17... h6 {[%emt 0:00:50] [#]} 18. Bc3 $1 $36 {[%emt 0:00:55][%mdl 2048] Hoping for Bd4. White has some pressure.} Nf5 {[%emt 0:01:16]} 19. Qf3 {[%emt 0:00:42][%csl LRb7,LRf5]} (19. g4 {looks sharper.} b4 20. Be1 Nh4 21. Rxd6 Qxd6 22. Bxb7 hxg5 23. Bxb4 Qb8 24. Bxa8 Qxa8 25. f3) 19... Bxe4 {[%emt 0:00:45]} 20. Nxe4 {[%emt 0:00:02] Threatens to win with g4.} Be7 {[%emt 0:00:06]} 21. Ng3 {[%emt 0:00:36] White is more active.} g6 $2 {[%emt 0:01:45]} (21... b4 $16 {is a better defense.} 22. Nxf5 exf5) 22. Qf4 {[%emt 0:00:28]} (22. Rd7 $18 Bg5 23. Ne4) 22... Bg5 {[%emt 0:00:16] This move loses the game for Black.} (22... Rae8 $16 23. Nxf5 exf5) 23. Qe5 $18 {[%emt 0:00:09]} f6 {[%emt 0:00:01]} 24. Qe4 {[%emt 0:00:01]} Ne7 $2 {[%emt 0:00:36]} (24... Ra7 25. Bb4 Nxg3 26. hxg3 f5) 25. Bd4 {[%emt 0:00:13] White is clearly winning.} Qa5 {[%emt 0:00:21]} 26. Qxe6+ {[%emt 0:00:01]} Rf7 {[%emt 0:00:01] Black is weak on the dark squares} 27. Ne4 {[%emt 0:00:03]} Kg7 {[%emt 0:00:04]} 28. f4 {[%emt 0:00:08]} Bh4 {[%emt 0:00:02]} 29. g3 {[%emt 0:00:01] Weighted Error Value: White=0.14 (very precise) /Black=0.60.  Loses game:     	---       	Black=2      Mistake:       	White=2     	Black=2      Inaccurate:     	---       	Black=2      OK:         	White=4     	Black=7      Best:        	White=2     	Black=1} 1-0